[Event "IV Estrellas 2022"]
[Site "La Palma"]
[Date "2022.08.12"]
[Round "9.9"]
[White "Acosta Sosa, Juan Manuel"]
[Black "Miranda Herrera, Miguel"]
[Result "1/2-1/2"]
[ECO "E11"]
[WhiteElo "2310"]
[BlackElo "1904"]
[Annotator "TA"]
[PlyCount "84"]
[EventDate "2022.08.06"]
[EventType "swiss"]
[EventCountry "ESP"]
[SourceTitle "playchess.com"]
[Source "ChessBase"]
[SourceQuality "1"]
[TimeControl "5400+30"]

{[%evp 12,84,8,0,21,15,22,13,15,0,0,0,0,0,2,0,0,0,27,23,18,31,59,58,51,49,49,54,55,50,48,48,55,56,51,57,55,56,44,30,55,54,74,64,72,0,0,0,0,0,0,0,0,0,0,0,0,0,0,0,0,0,0,-13,0,-64,-6,-64,-55,-77,-14,-21,0,-31,0]} 1. d4 {[%emt 0:00:04]} d5 {[%emt 0:00:09]} 2. Nf3 {[%emt 0:00:13]} Nf6 {[%emt 0:00:07]} 3. c4 {[%emt 0:00:07]} e6 {[%emt 0:00:05]} 4. g3 {[%emt 0:00:33]} Bb4+ {[%emt 0:00:46]} 5. Bd2 {[%emt 0:00:22]} Be7 {[%emt 0:00:06]} 6. Bg2 {[%emt 0:00:09]} O-O {[%emt 0:00:07]} 7. O-O {[%emt 0:00:36]} dxc4 {[%emt 0:01:26] E11: Bogo-Indian.} 8. Qc2 {[%emt 0:00:22] 8.Qa4 is not played anymore.} Bd7 {[%emt 0:03:54]} (8... b5 {seems wilder.} 9. Ne5 Nd5 10. b3 cxb3 11. axb3 Bb7) 9. Ne5 {[%emt 0:02:18]} Nc6 {[%emt 0:00:06] [#] The position is equal.} 10. Nxc6 $146 {[%emt 0:01:29]} (10. Qxc4 {is interesting.} Nxe5 11. dxe5 Nd5 12. Nc3) ({Predecessor:} 10. Qxc4 Nxe5 11. dxe5 Nd5 12. Nc3 c6 13. a4 Qb8 14. f4 a5 15. Qd3 Qc7 16. Rac1 {½-½ (43) Unander,M-Plato,B Sweden 1994}) 10... Bxc6 {[%emt 0:00:07]} 11. Bxc6 {[%emt 0:00:12]} bxc6 {[%emt 0:00:06]} 12. Qxc4 {[%emt 0:00:07]} Qd5 {[%emt 0:03:02]} 13. Rc1 {[%emt 0:00:28]} Qh5 {[%emt 0:00:36]} 14. Kg2 {[%emt 0:05:13]} Rad8 {[%emt 0:15:42]} 15. Bc3 {[%emt 0:08:43]} Nd5 {[%emt 0:08:04]} 16. e4 {[%emt 0:08:23]} Bg5 {[%emt 0:01:54]} 17. Re1 {[%emt 0:16:41][%cal Bc1e1,Be1e2,Be2b2][%mdl 32]} Nxc3 {[%emt 0:04:44]} 18. Nxc3 {[%emt 0:09:28]} Bd2 {[%emt 0:05:34]} 19. Re2 {[%emt 0:02:37]} Bxc3 {[%emt 0:05:10]} 20. bxc3 {[%emt 0:00:03]} Qb5 {[%emt 0:00:07] Inhibits Rb1.} 21. Qxb5 {[%emt 0:00:21]} cxb5 $14 {[%emt 0:00:05][%mdl 4096] Endgame KRR-KRR} 22. Rb2 {[%emt 0:00:19]} a6 {[%emt 0:49:33][%cal Oc7c5]} 23. a4 {[%emt 0:01:07]} c6 {[%emt 0:00:00]} 24. axb5 {[%emt 0:01:00]} axb5 {[%emt 0:00:00]} 25. Ra7 {[%emt 0:02:39]} Rc8 {[%emt 0:00:00]} 26. Kf3 {[%emt 0:01:08]} Rfd8 {[%emt 0:00:00]} 27. Ke3 {[%emt 0:00:54] White is more active.} g6 {[%emt 0:00:00]} 28. e5 {[%emt 0:01:53]} ({Better is} 28. h4 $16) 28... c5 $11 {[%emt 0:00:00]} 29. Rxb5 {[%emt 0:08:36]} cxd4+ {[%emt 0:00:00]} 30. cxd4 {[%emt 0:00:04]} Rc3+ $1 {[%emt 0:00:00]} 31. Ke4 {[%emt 0:01:51]} Rc4 {[%emt 0:00:00]} 32. Rbb7 {[%emt 0:00:18]} Rcxd4+ {[%emt 0:00:00]} 33. Ke3 {[%emt 0:01:52]} Rd3+ {[%emt 0:00:00]} 34. Ke2 {[%emt 0:00:06]} Rd2+ $1 {[%emt 0:00:00]} 35. Kf3 {[%emt 0:00:05]} Rf8 {[%emt 0:00:00]} 36. Ke3 {[%emt 0:00:08]} Rc2 {[%emt 0:00:00]} 37. h3 {[%emt 0:00:28]} h6 {[%emt 0:00:00]} 38. f3 {[%emt 0:03:17]} (38. Rc7 $11 Rxc7 39. Rxc7) 38... Rc3+ {[%emt 0:00:00]} (38... Rg2 $1 $15) 39. Ke4 {[%emt 0:00:36]} ({White should play} 39. Kf2 $11) 39... Rfc8 $15 {[%emt 0:00:00][%cal Rc8c4]} 40. Rb4 {[%emt 0:00:50] [#]} Rd8 {[%emt 0:00:00]} (40... g5 $1 $17) 41. Rbb7 {[%emt 0:02:36]} Rdc8 {[%emt 0:00:00][%cal Rc8c4]} 42. Rb4 {[%emt 0:00:07]} Rd8 {[%emt 0:00:00] Weighted Error Value: White=0.11 (very precise) /Black=0.11 (very precise)} 1/2-1/2

[Event "IV Estrellas 2022"]
[Site "La Palma"]
[Date "2022.08.12"]
[Round "9.10"]
[White "Estremera Panos, Sergio"]
[Black "Arnaiz Yanes, Miguel Angel"]
[Result "1-0"]
[ECO "A51"]
[WhiteElo "2262"]
[BlackElo "1923"]
[Annotator "TA"]
[PlyCount "43"]
[EventDate "2022.08.06"]
[EventType "swiss"]
[EventCountry "ESP"]
[SourceTitle "playchess.com"]
[Source "ChessBase"]
[SourceQuality "1"]
[TimeControl "5400+30"]

{[%evp 10,43,159,143,160,149,189,175,195,162,167,177,164,123,186,189,366,351,359,332,405,361,370,363,351,367,476,438,631,652,835,837,872,858,1037,1006]} 1. d4 {[%emt 0:00:14]} Nf6 {[%emt 0:00:06][%cal Bg8f6,Bf6e4,Be4f2,Bf2h1][%mdl 32]} 2. c4 {[%emt 0:00:19]} e5 {[%emt 0:00:18]} 3. dxe5 {[%emt 0:00:22]} Ne4 {[%emt 0:00:37]} 4. a3 {[%emt 0:01:12]} Nc6 {[%emt 0:00:35]} 5. Nf3 {[%emt 0:00:55]} d6 {[%emt 0:00:07] [#]} 6. Qc2 $1 {[%emt 0:01:28]} Bf5 {[%emt 0:00:09][%cal Oe4g3] Strongly threatening ...Ng3! A51: Budapest Gambit, Fajarowicz Variation.} 7. Nc3 {[%emt 0:00:29]} Nxf2 {[%emt 0:00:53] [#]} 8. Qxf5 {[%emt 0:04:33]} g6 {[%emt 0:01:06] White is clearly better.} 9. Qf6 {[%emt 0:07:42]} Qxf6 {[%emt 0:00:18]} 10. exf6 {[%emt 0:00:01]} Nxh1 {[%emt 0:01:35] [#]} 11. Nd5 $146 {[%emt 0:09:20]} ({Predecessor:} 11. g3 h6 12. Bg2 Nxg3 13. hxg3 O-O-O 14. Bf4 g5 15. Be3 Re8 16. Kf2 Kb8 17. Nd5 {1-0 (29) Zinke,T-Muller,R (1492) GER email 2012}) 11... Kd7 {[%emt 0:04:58]} (11... O-O-O $16 {keeps fighting.}) 12. g3 $18 {[%emt 0:02:23][%mdl 1024] White has strong compensation.} Nd8 $2 {[%emt 0:01:15]} (12... Re8 13. Bh3+ (13. Bg2 Nxg3 14. hxg3 Kc8 $16) 13... Kd8) 13. Bh3+ {[%emt 0:03:22]} Ne6 {[%emt 0:00:56]} 14. Be3 {[%emt 0:12:13] Threatens to win with Ng5.} h5 {[%emt 0:04:37]} 15. O-O-O {[%emt 0:03:35]} Bh6 {[%emt 0:01:54]} 16. Rxh1 {[%emt 0:08:48] Bxh6 is the strong threat.} Bxe3+ {[%emt 0:00:22]} 17. Nxe3 {[%emt 0:00:03]} c6 {[%emt 0:02:09]} 18. Ng5 {[%emt 0:01:28] White is clearly winning.} Rhf8 {[%emt 0:01:00]} (18... Raf8 $142 19. Ng2 Ke8) 19. Rf1 {[%emt 0:03:46]} Rae8 {[%emt 0:04:08]} 20. Ng2 {[%emt 0:00:26]} Kd8 {[%emt 0:02:54]} 21. Bxe6 {[%emt 0:00:25]} fxe6 {[%emt 0:02:11]} 22. Nh4 {[%emt 0:00:09] Weighted Error Value: White=0.14 (very precise) /Black=0.62} 1-0

[Event "IV Estrellas 2022"]
[Site "La Palma"]
[Date "2022.08.12"]
[Round "9.11"]
[White "Cubas Cabrera, Angel Luis"]
[Black "Rodriguez Bittar, Karim Javier"]
[Result "1-0"]
[ECO "A84"]
[WhiteElo "2207"]
[BlackElo "1881"]
[Annotator "TA"]
[PlyCount "158"]
[EventDate "2022.08.06"]
[EventType "swiss"]
[EventCountry "ESP"]
[SourceTitle "playchess.com"]
[Source "ChessBase"]
[SourceQuality "1"]
[TimeControl "5400+30"]

{[%evp 9,158,19,21,16,36,28,25,28,59,14,16,20,16,22,37,40,69,43,70,16,34,-24,45,0,2,6,22,0,14,13,33,24,34,21,43,51,32,36,69,55,56,0,55,55,55,55,55,55,55,48,48,48,68,69,88,88,93,88,88,88,294,291,264,92,264,100,107,100,100,70,106,107,107,92,107,107,162,171,232,203,232,232,232,0,232,232,232,232,232,232,232,232,232,154,232,232,232,233,221,104,242,214,241,178,178,178,178,178,244,170,162,0,253,196,151,137,137,137,137,129,129,127,129,104,101,0,2077,1916,1559,151,151,151,151,151,151,151,151,151,151,151,29960,865,702,499,455,428,29980,29981,29981,29982,29982]} 1. d4 {[%emt 0:00:03]} d5 {[%emt 0:06:50]} 2. Nf3 {[%emt 0:00:12]} c6 {[%emt 0:00:40]} 3. c4 {[%emt 0:00:06]} e6 {[%emt 0:00:05]} 4. e3 {[%emt 0:00:14]} f5 {[%emt 0:00:23]} 5. Be2 {[%emt 0:03:16]} Bd6 {[%emt 0:00:07]} 6. Nc3 {[%emt 0:02:39] A84: Dutch Defence: 2 c4 Miscellaneous.} Nd7 {[%emt 0:00:53]} 7. Qc2 {[%emt 0:01:19]} Nh6 {[%emt 0:00:24]} 8. Rb1 {[%emt 0:01:16] White has an edge.} a5 {[%emt 0:01:15]} 9. a3 {[%emt 0:00:15] [#]} O-O $146 {[%emt 0:00:42]} ({Predecessor:} 9... Qf6 10. b4 axb4 11. axb4 Nf7 12. b5 O-O 13. bxc6 bxc6 14. cxd5 exd5 15. O-O g5 {1-0 (32) Corsi Ferrari,A-De las Heras,J (2205) Mar del Plata 1996}) 10. b4 {[%emt 0:03:41]} axb4 {[%emt 0:02:25]} 11. axb4 {[%emt 0:00:04]} Qf6 {[%emt 0:06:02]} 12. O-O {[%emt 0:33:04]} Ng4 {[%emt 0:05:50]} 13. h3 {[%emt 0:16:34]} Nh6 {[%emt 0:00:34]} 14. Qd1 {[%emt 0:06:12]} (14. b5 $14) 14... Nf7 {[%emt 0:03:09]} 15. Ne1 {[%emt 0:04:28]} ({Better is} 15. b5 $14) 15... g5 {[%emt 0:03:15]} (15... dxc4 $11 16. Bxc4 Nb6) 16. c5 {[%emt 0:00:31]} Bb8 {[%emt 0:00:34]} 17. f4 {[%emt 0:00:03] Inhibits e5.} Qg7 {[%emt 0:02:00]} 18. Kh2 {[%emt 0:07:59]} Nf6 {[%emt 0:01:18][%cal Oe6e5]} 19. g3 {[%emt 0:00:40]} Kh8 {[%emt 0:02:27][%cal Oe6e5]} 20. Nd3 {[%emt 0:01:18]} Rg8 {[%emt 0:02:25]} 21. Rg1 {[%emt 0:00:02]} Ne4 {[%emt 0:14:40]} 22. Nxe4 {[%emt 0:00:23]} fxe4 {[%emt 0:01:13]} 23. Ne5 {[%emt 0:01:11]} Bxe5 {[%emt 0:04:06]} 24. fxe5 {[%emt 0:00:21]} Bd7 {[%emt 0:08:13][%cal Og5g4]} 25. Rf1 {[%emt 0:02:36]} (25. g4 $14) 25... Nh6 {[%emt 0:00:17]} ({Black should try} 25... g4 $1 $11) 26. g4 $1 $14 {[%emt 0:01:20]} Rgf8 {[%emt 0:01:57]} 27. Kg2 {[%emt 0:01:50]} Ng8 {[%emt 0:01:20]} 28. Bd2 {[%emt 0:00:24]} Ne7 {[%emt 0:04:12]} 29. Rxf8+ {[%emt 0:01:55]} Qxf8 {[%emt 0:01:09]} 30. Ra1 {[%emt 0:00:28]} Rb8 {[%emt 0:03:14]} 31. Be1 {[%emt 0:01:40]} Kg7 {[%emt 0:08:13]} 32. Bg3 {[%emt 0:00:35]} h6 {[%emt 0:02:12]} 33. Ra7 {[%emt 0:00:07]} Nc8 {[%emt 0:00:20]} 34. Ra2 {[%emt 0:00:04]} Qd8 $2 {[%emt 0:01:37]} (34... Ne7 $16) 35. Qf1 $18 {[%emt 0:01:46][%cal Of1f6] Qf6+! is the strong threat.} Qf8 {[%emt 0:01:06] Inhibits Qf6+.} 36. Qe1 {[%emt 0:02:39]} (36. Qf6+ $1 $18 {is the precise move to win.} Kg8 37. h4) 36... Qd8 $2 {[%emt 0:02:35]} (36... Ne7 $16) 37. h4 $2 {[%emt 0:00:27]} (37. Qf2 $18 {[%cal Of2f6] and the rest is easy. aiming for Qf6+!} Qf8 38. Qf6+ Kg8 39. h4) 37... Ne7 {[%emt 0:02:52]} 38. Qf2 {[%emt 0:00:05]} Ng8 {[%emt 0:00:59] Inhibits Qf6+.} 39. Ra1 {[%emt 0:01:08]} Qf8 {[%emt 0:03:02]} 40. Qe1 {[%emt 0:00:40]} Ra8 {[%emt 0:00:39]} 41. Qb1 {[%emt 0:00:36]} Ne7 {[%emt 0:01:01]} 42. Ra5 $36 {[%emt 0:01:24][%mdl 2048] Black is under strong pressure.} Rxa5 {[%emt 0:00:35]} (42... Rb8 $16) 43. bxa5 {[%emt 0:00:02]} Bc8 {[%emt 0:05:10]} (43... Qa8 $142 44. h5 Kg8) 44. Qb6 {[%emt 0:01:19]} Kf7 {[%emt 0:00:00]} 45. Qc7 {[%emt 0:00:19]} Qe8 {[%emt 0:00:00] [#]} 46. Qb6 $2 {[%emt 0:00:40]} (46. h5 $1 $18) 46... Kg7 $2 {[%emt 0:00:00] [#]} (46... Qf8 $1 $11) 47. h5 $1 {[%emt 0:03:09]} Qd7 {[%emt 0:00:19]} 48. Kf1 {[%emt 0:00:11][%cal Bg2f1,Bf1e1,Be1d1,Bd1c2,Bc2b3][%mdl 32]} Kf7 {[%emt 0:00:54]} 49. Ke1 {[%emt 0:00:29]} Ke8 {[%emt 0:00:40]} 50. Kd1 {[%emt 0:00:07]} Qd8 {[%emt 0:00:12]} 51. Kc2 {[%emt 0:00:28]} Kd7 {[%emt 0:01:01]} (51... Bd7 $16 52. a6 bxa6) 52. Kb3 {[%emt 0:00:21]} Qc7 {[%emt 0:00:18]} 53. Ka4 {[%emt 0:00:16]} Qd8 {[%emt 0:00:38]} 54. Bd1 {[%emt 0:01:44]} (54. Qb1 $18 {and White stays clearly on top.}) 54... Ke8 {[%emt 0:00:35]} (54... Qf8 $16 {was called for.} 55. Be2 Ke8) 55. Qb2 {[%emt 0:00:10]} Ng8 {[%emt 0:00:16]} 56. Qf2 {[%emt 0:00:32]} Qe7 {[%emt 0:00:16]} 57. Be2 {[%emt 0:00:25]} Kd8 {[%emt 0:00:26]} 58. Bf1 {[%emt 0:00:15]} Ke8 {[%emt 0:00:18]} (58... Kc7 $142 59. Qb2 Kd7) 59. Bh2 {[%emt 0:00:58]} Kd8 {[%emt 0:00:17]} 60. Bg3 {[%emt 0:00:03]} (60. Kb4 $142) 60... Ke8 $1 {[%emt 0:00:04]} 61. Qb2 {[%emt 0:00:08]} Qf7 {[%emt 0:00:34]} 62. Be2 {[%emt 0:00:05] Hoping for Qb6.} Qc7 {[%emt 0:00:26]} 63. Qb6 {[%emt 0:00:08]} Kd8 {[%emt 0:00:35]} 64. Be1 {[%emt 0:00:03][%cal Bg3e1,Be1a5,Ba5b4,Bb4c5,Bc5e7][%mdl 32] Intending a6 and mate.} Kd7 {[%emt 0:00:21]} 65. a6 {[%emt 0:01:34]} bxa6 {[%emt 0:00:33]} 66. Ba5 {[%emt 0:00:53] 0x0.001e3e06f2efdp-1022s more active pieces.} ({Don't do} 66. Bxa6 $6 Bxa6 67. Qxa6 Qb8 $14) 66... Qxb6 {[%emt 0:00:34]} 67. cxb6 $16 {[%emt 0:01:25][%mdl 4096] Endgame KBB-KBN} (67. Bxb6 $16 Ne7 68. Ka5) 67... Bb7 $2 {[%emt 0:01:53][%mdl 8192]} (67... c5 $11) 68. Bb4 $18 {[%emt 0:00:03] Threatening mate with Ka5.} Ne7 {[%emt 0:00:41]} 69. Ka5 $2 {[%emt 0:00:03]} (69. Bc5 $18 Nf5 70. gxf5 exf5 71. Bf8) 69... c5 $16 {[%emt 0:00:14]} 70. Bxc5 {[%emt 0:00:14]} Nc6+ {[%emt 0:00:14]} 71. Ka4 {[%emt 0:00:04]} Ke8 {[%emt 0:00:11] Prevents Bf8.} 72. Ka3 {[%emt 0:01:19]} Nb8 {[%emt 0:01:20]} 73. Bd1 {[%emt 0:00:17]} Kf7 {[%emt 0:00:32]} 74. Ba4 {[%emt 0:00:09]} Kg7 $2 {[%emt 0:00:22]} (74... Nc6 $16 75. Bb4 Kg8) 75. Be7 {[%emt 0:01:21]} (75. Kb4 $142 Nc6+ 76. Bxc6 Bxc6 77. Be7 Kg8 78. Kc5 Ba8 79. Kd6 Kf7 80. Kd7) 75... Kf7 $18 {[%emt 0:00:13]} 76. Bf6 {[%emt 0:01:03] Threatens to win with Kb4.} a5 {[%emt 0:00:52]} 77. Bb5 {[%emt 0:00:41] Ka4 would kill now.} Na6 {[%emt 0:00:37]} (77... Nc6 $18 78. Kb3 Kf8) 78. Bxa6 {[%emt 0:00:49]} ({Not} 78. Ka4 Nb4 $16) 78... Bxa6 {[%emt 0:00:08]} 79. Ka4 {[%emt 0:00:01]} Bb7 {[%emt 0:00:54] Weighted Error Value: White=0.29 (precise) /Black=0.32} 1-0

[Event "IV Estrellas 2022"]
[Site "La Palma"]
[Date "2022.08.12"]
[Round "9.12"]
[White "Amador Garcia, Ismael"]
[Black "Perez Bolanos, David"]
[Result "1-0"]
[ECO "C65"]
[WhiteElo "2128"]
[BlackElo "2041"]
[Annotator "TA"]
[PlyCount "84"]
[EventDate "2022.08.06"]
[EventType "swiss"]
[EventCountry "ESP"]
[SourceTitle "playchess.com"]
[Source "ChessBase"]
[SourceQuality "1"]
[TimeControl "5400+30"]

{[%evp 9,84,2,0,19,8,16,37,27,38,40,41,27,33,27,20,18,23,15,29,23,27,26,18,17,39,35,36,27,36,14,43,34,41,31,41,39,43,39,83,82,89,76,88,81,150,150,152,155,152,152,131,124,199,180,128,108,123,64,83,75,79,50,175,173,1425,1293,1291,1115,1533,1203,1909,1893,1854,1727,1662,602,29993]} 1. e4 {[%emt 0:04:28]} e5 {[%emt 0:00:02]} 2. Nf3 {[%emt 0:00:05]} Nc6 {[%emt 0:00:09]} 3. Bb5 {[%emt 0:00:03]} Nf6 {[%emt 0:00:12]} 4. d3 {[%emt 0:00:02]} Bc5 {[%emt 0:00:12]} 5. c3 {[%emt 0:00:05]} d5 {[%emt 0:00:19]} 6. exd5 {[%emt 0:00:08] C65: Ruy Lopez: Berlin Defence (3...Nf6), unusual lines and 4 0-0 Bc5.} Qxd5 {[%emt 0:00:08][%cal Oc5f2] ...Bxf2+! is the strong threat.} 7. Bc4 {[%emt 0:00:03]} Qd8 {[%emt 0:00:11]} 8. Bg5 {[%emt 0:00:08] White is slightly better.} h6 {[%emt 0:03:20] [#]} 9. Bxf6 $146 {[%emt 0:00:05]} ({Predecessor:} 9. Bh4 g5 10. Bg3 e4 11. Qe2 Qe7 12. dxe4 Nxe4 13. Nbd2 Nxg3 14. Qxe7+ Bxe7 15. fxg3 {1-0 (43) Shankland,S (2709)-Mamedyarov,S (2782) Saint Louis 2021}) 9... Qxf6 {[%emt 0:00:10]} 10. Nbd2 {[%emt 0:00:23]} Bf5 {[%emt 0:06:12]} 11. Ne4 {[%emt 0:00:28]} Bxe4 {[%emt 0:00:17]} 12. dxe4 {[%emt 0:00:05]} O-O {[%emt 0:05:22]} 13. O-O {[%emt 0:00:31]} Rad8 {[%emt 0:01:11]} 14. Qc2 {[%emt 0:00:18]} Ne7 {[%emt 0:01:16]} 15. b4 {[%emt 0:02:11]} Bb6 {[%emt 0:00:23]} 16. a4 {[%emt 0:00:04][%cal Ba2a4,Ba4a5][%mdl 32] [#] Hoping for a5.} c6 {[%emt 0:02:02]} 17. a5 {[%emt 0:03:18]} Bc7 {[%emt 0:00:16]} 18. Rfd1 {[%emt 0:00:36]} Ng6 {[%emt 0:08:47]} 19. Nd2 {[%emt 0:03:16][%cal Bf3d2,Bd2f1,Bf1e3,Be3f5][%mdl 32]} (19. Qe2 {is interesting.} Nf4 20. Qe3 Qg6 21. g3) 19... Qe7 {[%emt 0:04:55]} 20. Nf1 {[%emt 0:06:39]} Rxd1 {[%emt 0:03:41]} 21. Rxd1 {[%emt 0:00:13]} Rd8 {[%emt 0:01:12]} 22. Ne3 {[%emt 0:00:12]} Rxd1+ {[%emt 0:06:32]} 23. Qxd1 {[%emt 0:00:10]} Nf8 {[%emt 0:05:14]} 24. Nf5 {[%emt 0:15:26]} Qf6 {[%emt 0:02:15]} 25. g3 {[%emt 0:01:14]} Kh7 {[%emt 0:07:48]} 26. Qd2 {[%emt 0:00:46]} Kg8 {[%emt 0:05:48]} (26... b6 $142) 27. h4 $16 {[%emt 0:01:14]} b6 {[%emt 0:05:25]} 28. a6 {[%emt 0:07:18]} b5 {[%emt 0:08:23]} 29. Bb3 {[%emt 0:00:46] 0x0.001f25b4b7fbdp-1022s more active pieces.} Kh7 {[%emt 0:06:01]} 30. c4 {[%emt 0:05:01]} Qe6 {[%emt 0:03:38]} (30... bxc4 $16 31. Bxc4 Kg8) 31. Qc3 $18 {[%emt 0:04:59] aiming for cxb5.} bxc4 {[%emt 0:01:48]} 32. Bxc4 {[%emt 0:00:28]} Qd7 {[%emt 0:00:15] [#]} 33. Kg2 {[%emt 0:14:15]} ({White should try} 33. h5 $1 $16) 33... g6 $1 $14 {[%emt 0:00:48]} 34. Ne3 {[%emt 0:00:09][%cal Oh4h5]} h5 {[%emt 0:01:31]} 35. Bb3 {[%emt 0:00:42]} Ne6 {[%emt 0:05:52] Loses the game.} (35... Bb6 $1 $14) 36. Bxe6 $18 {[%emt 0:00:27]} Qxe6 {[%emt 0:00:07][%mdl 4096] Endgame KQB-KQN} (36... fxe6 37. Nc4 Kg8) 37. b5 $1 {[%emt 0:01:56] White is clearly winning.} c5 {[%emt 0:03:32]} 38. Qxc5 {[%emt 0:00:41]} Bb6 {[%emt 0:00:06]} 39. Qd5 {[%emt 0:00:37] Strongly threatening Qxe6.} Qf6 {[%emt 0:00:29]} 40. Qc6 {[%emt 0:00:30]} Qd8 {[%emt 0:02:55]} 41. Nd5 {[%emt 0:00:26]} Bd4 {[%emt 0:00:46]} 42. Qc7 {[%emt 0:01:23]} (42. Qb7 $142 Kh8 43. b6 Bxb6 44. Nxb6) 42... Qe8 {[%emt 0:01:19] Weighted Error Value: White=0.18 (very precise) /Black=0.17 (very precise)} 1-0

[Event "IV Estrellas 2022"]
[Site "La Palma"]
[Date "2022.08.12"]
[Round "9.13"]
[White "Pleschke, Julius Jonas"]
[Black "Brito Garcia, Alfredo"]
[Result "1/2-1/2"]
[ECO "D00"]
[WhiteElo "1685"]
[BlackElo "2291"]
[Annotator "TA"]
[PlyCount "61"]
[EventDate "2022.08.06"]
[EventType "swiss"]
[EventCountry "ESP"]
[SourceTitle "playchess.com"]
[Source "ChessBase"]
[SourceQuality "1"]
[TimeControl "5400+30"]

{[%evp 11,61,0,0,0,0,12,10,-12,-9,-20,0,-53,-6,-30,-16,-20,-19,-30,-22,-41,-22,-27,-12,-24,-8,-43,-32,-33,0,0,8,6,33,19,20,19,14,7,8,10,13,27,125,-83,-87,-273,0,0,0,0,0,-5651]} 1. d4 {[%emt 0:00:02]} Nf6 {[%emt 0:00:39]} 2. Nc3 {[%emt 0:00:05]} d5 {[%emt 0:02:10]} 3. Bf4 {[%emt 0:00:16]} c6 {[%emt 0:00:06]} 4. e3 {[%emt 0:00:06]} g6 {[%emt 0:01:25]} 5. Bd3 {[%emt 0:01:14]} Bg7 {[%emt 0:01:51]} 6. Nf3 {[%emt 0:01:35]} O-O {[%emt 0:07:02]} 7. h3 {[%emt 0:00:27] D00: 1 d4 d5: Unusual lines.} b6 {[%emt 0:03:30]} 8. O-O {[%emt 0:01:48]} c5 {[%emt 0:02:54]} 9. Ne5 {[%emt 0:07:07]} Bb7 {[%emt 0:01:58]} 10. Re1 {[%emt 0:08:18]} Nfd7 {[%emt 0:04:27] [#]} 11. Bh2 $146 {[%emt 0:11:10]} (11. Nf3 $11) ({Predecessor:} 11. Nf3 Nf6 12. Be2 Ne4 13. Nxe4 dxe4 14. Ne5 cxd4 15. Qxd4 Qxd4 16. exd4 Nc6 17. c3 Nxe5 18. dxe5 {0-1 (46) Okhotnik,V (2363)-Bergez,L (2314) Paris 2019}) 11... Nc6 {[%emt 0:03:38]} (11... Nxe5 $15 12. Bxe5 Bxe5 13. dxe5 Nc6) 12. Nxc6 {[%emt 0:02:42]} Bxc6 {[%emt 0:00:21]} 13. Bb5 {[%emt 0:01:39]} Qc8 {[%emt 0:06:57]} 14. Bxc6 {[%emt 0:00:55]} Qxc6 {[%emt 0:00:08]} 15. Ne2 {[%emt 0:00:23]} Rfc8 {[%emt 0:06:06]} 16. c3 {[%emt 0:00:25]} e6 {[%emt 0:00:32]} 17. Nf4 {[%emt 0:02:01]} b5 {[%emt 0:04:06][%cal Bb6b5,Bb5b4][%mdl 32]} 18. h4 {[%emt 0:01:01]} b4 $1 {[%emt 0:02:36]} 19. h5 {[%emt 0:00:49]} cxd4 {[%emt 0:02:25]} 20. cxd4 {[%emt 0:00:26]} Qc2 {[%emt 0:00:15]} 21. Nd3 {[%emt 0:05:42]} Bf8 {[%emt 0:06:01]} 22. hxg6 {[%emt 0:00:57]} hxg6 {[%emt 0:00:08]} 23. Qxc2 {[%emt 0:00:17]} Rxc2 {[%emt 0:00:08]} 24. Rac1 {[%emt 0:01:01]} Rac8 {[%emt 0:00:30]} 25. Rxc2 {[%emt 0:30:59]} Rxc2 {[%emt 0:00:46]} 26. Rc1 {[%emt 0:01:20]} Rd2 {[%emt 0:07:44] [#]} (26... b3 $11 {remains equal.} 27. axb3 Rd2) 27. Ne5 $2 {[%emt 0:01:01]} (27. Kf1 $1 $16 {[%cal Rf1e1]}) 27... Nb6 $17 {[%emt 0:01:05]} 28. Ng4 $2 {[%emt 0:00:56]} (28. b3 $17 {was necessary.}) 28... f5 $2 {[%emt 0:13:51]} (28... Rxb2 $19 29. Ra1 Bg7) 29. Nf6+ $11 {[%emt 0:00:45] The position is equal.} Kf7 {[%emt 0:00:42]} 30. Rc7+ $1 {[%emt 0:04:24]} ({Don't play} 30. Be5 Nc4 31. b3 Bg7 32. bxc4 Bxf6 33. cxd5 Bxe5 34. dxe5 exd5 35. Rc7+ Ke6 36. Rxa7 Kxe5 $15) 30... Kxf6 {[%emt 0:11:15][%cal Rd2d1]} 31. Bd6 $2 {[%emt 0:16:09][%mdl 40960] Weighted Error Value: White=0.24 (precise) /Black=0.31. An unexpected result.} 1/2-1/2